bitfinex/quotes_BTCUSD_20241211
["timestamp","ask_amount","ask_price","bid_price","bid_amount"]
[1733929111387,0.200869,99567.0,99560.0,0.13003714]
[1733929111597,0.200895,99555.0,99547.0,0.13985962]
[1733929111823,0.10532524,99554.0,99553.0,0.13985962]
[1733929112276,0.10532524,99554.0,99553.0,0.26989676]
[1733929112505,0.10532524,99554.0,99553.0,0.13985962]
[1733929112726,0.10532524,99554.0,99553.0,0.26989676]
[1733929112951,0.10532524,99554.0,99553.0,0.27044498]
[1733929113435,0.350886,99559.0,99558.0,0.13003714]
[1733929113734,0.15,99559.0,99558.0,0.13003714]
[1733929113877,0.15,99559.0,99558.0,0.13985962]
[1733929114119,0.023,99581.0,99553.0,0.00054822]
[1733929114120,0.200846,99579.0,99572.0,0.13985962]
[1733929114340,0.401699,99577.0,99572.0,0.13985962]
[1733929114573,0.200853,99575.0,99572.0,0.13985962]
[1733929114790,0.200834,99585.0,99569.0,0.13003714]
[1733929114791,0.15,99572.0,99569.0,0.13003714]
[1733929115040,0.10532524,99571.0,99569.0,0.13003714]
[1733929115264,0.15,99570.0,99569.0,0.13003714]
[1733929115492,0.15,99570.0,99563.0,0.13985962]
[1733929115493,0.25532524,99570.0,99563.0,0.26989676]
[1733929115715,0.30619024,99569.0,99563.0,0.13985962]
[1733929115945,0.200867,99568.0,99563.0,0.13985962]
[1733929116169,0.200876,99564.0,99561.0,0.13985962]
[1733929116402,0.200876,99564.0,99562.0,0.13985962]
[1733929116587,0.200876,99564.0,99561.0,0.13985962]
[1733929116859,0.002,99571.0,99553.0,0.00054822]
[1733929116860,0.200893,99556.0,99553.0,0.00054822]
[1733929117076,0.25532524,99555.0,99553.0,0.00054822]
[1733929117516,0.373895,99554.0,99553.0,0.00054822]
[1733929117764,0.47922024,99554.0,99553.0,0.00054822]
[1733929119149,0.48869784,99554.0,99553.0,0.00054822]
[1733929119371,0.57266725,99554.0,99553.0,0.00054822]
[1733929119602,0.49069784,99554.0,99553.0,0.00054822]
[1733929119828,0.48869784,99554.0,99553.0,0.00054822]
[1733929120092,0.49069784,99554.0,99553.0,0.00154822]
[1733929120331,0.57005692,99554.0,99553.0,0.00154822]
[1733929120562,0.49269784,99554.0,99553.0,0.00154822]
[1733929121012,0.49069784,99554.0,99553.0,0.00154822]
[1733929121480,0.49269784,99554.0,99553.0,0.00154822]
[1733929121700,0.49069784,99554.0,99553.0,0.00054822]
[1733929122147,0.56985692,99554.0,99553.0,0.00054822]
[1733929122367,0.49269784,99554.0,99553.0,0.00054822]
[1733929122630,0.26680284,99554.0,99553.0,0.00054822]
[1733929122849,0.002,99554.0,99553.0,0.13058536]
[1733929123311,0.1,99566.0,99553.0,0.13735439]
[1733929123533,0.004,99554.0,99553.0,0.13835439]
[1733929123754,0.002,99554.0,99553.0,0.13735439]
[1733929123971,0.15,99558.0,99553.0,0.13735439]
[1733929124192,0.002,99554.0,99553.0,0.13735439]
[1733929124434,0.0228511,99554.0,99553.0,0.13735439]
[1733929124876,0.25932524,99554.0,99553.0,0.13058536]
[1733929125096,0.25932524,99554.0,99553.0,0.13735439]
[1733929125321,0.25932524,99554.0,99553.0,0.13058536]
[1733929125322,0.152,99554.0,99553.0,0.13058536]
[1733929125542,0.152,99554.0,99553.0,0.27721401]
[1733929125764,0.002,99554.0,99553.0,0.27721401]
[1733929125988,0.00979371,99564.0,99563.0,0.13003714]
[1733929126211,0.1,99578.0,99560.0,0.13985962]
[1733929126212,0.00961307,99572.0,99567.0,0.13003714]
[1733929126482,0.30618624,99571.0,99567.0,0.13003714]
[1733929126706,0.30618624,99571.0,99568.0,0.00669953]
[1733929126928,0.10532524,99571.0,99567.0,0.13003714]
[1733929127154,0.10532524,99571.0,99566.0,0.13003714]
[1733929127155,0.15,99570.0,99566.0,0.13003714]
[1733929127379,0.10532524,99569.0,99568.0,0.00669953]
[1733929127612,0.15,99568.0,99567.0,0.1367413]
[1733929127834,0.25532524,99568.0,99567.0,0.13003714]
[1733929128513,0.15,99568.0,99567.0,0.26989676]
[1733929128749,0.002,99572.0,99571.0,0.26989676]
[1733929129017,0.002,99572.0,99553.0,0.07804822]
[1733929129018,0.200805,99599.0,99589.0,0.13003714]
[1733929129245,0.0001712,99600.0,99589.0,0.13003714]
[1733929129246,0.10532524,99598.0,99594.0,0.13003714]
[1733929129490,0.10532524,99598.0,99576.0,0.0458]
[1733929129491,0.0001712,99600.0,99599.0,0.13003714]
[1733929129719,0.0001712,99600.0,99599.0,0.27090066]
[1733929129946,0.0001712,99600.0,99599.0,0.26989676]
[1733929131070,0.0001712,99600.0,99599.0,0.27089676]
[1733929131974,0.0001712,99600.0,99599.0,0.27589676]
[1733929132203,0.0001716,99610.0,99608.0,0.13985962]
[1733929132435,0.0001716,99610.0,99608.0,0.26989676]
[1733929132681,0.0001716,99610.0,99608.0,0.525222]
[1733929133860,0.0001716,99610.0,99608.0,0.26989676]
[1733929134092,0.0001716,99610.0,99608.0,0.27289676]
[1733929134995,0.0001716,99610.0,99608.0,0.28189676]
[1733929136640,0.00036,99609.0,99608.0,0.28189676]
[1733929139133,0.00036,99609.0,99608.0,0.15185962]
[1733929139363,0.00036,99609.0,99608.0,0.28189676]
[1733929139834,0.00036,99609.0,99608.0,0.27889676]
[1733929140289,0.00136,99609.0,99608.0,0.27889676]
[1733929140750,0.00136,99609.0,99608.0,0.384222]
[1733929141205,0.00136,99609.0,99608.0,0.26989676]
[1733929141680,0.00036,99609.0,99608.0,0.27489676]
[1733929141900,0.00036,99609.0,99608.0,0.27089676]
[1733929142127,0.00036,99609.0,99608.0,0.27989676]
[1733929142353,0.00036,99609.0,99608.0,0.27089676]
[1733929142579,0.00036,99609.0,99608.0,0.26989676]
[1733929142801,0.00036,99609.0,99608.0,0.28289676]
[1733929144173,0.00036,99609.0,99608.0,0.617822]
[1733929144407,6.474e-05,99612.0,99608.0,0.617822]
[1733929144408,6.474e-05,99612.0,99611.0,0.49949676]
[1733929144639,6.474e-05,99612.0,99611.0,0.604822]
[1733929145090,6.474e-05,99612.0,99611.0,0.454822]
[1733929145315,6.474e-05,99612.0,99611.0,0.604822]
[1733929146024,6.474e-05,99612.0,99611.0,0.613822]
[1733929146249,6.474e-05,99612.0,99611.0,0.617822]
[1733929148058,6.474e-05,99612.0,99611.0,0.467822]
[1733929148326,6.474e-05,99612.0,99611.0,0.36249676]
[1733929149468,6.474e-05,99612.0,99611.0,0.668603]
[1733929150177,6.474e-05,99612.0,99611.0,0.013]
[1733929150400,6.474e-05,99612.0,99611.0,0.28289676]
[1733929150860,6.474e-05,99612.0,99611.0,0.40759676]
[1733929151331,6.474e-05,99612.0,99611.0,0.39459676]
[1733929151553,0.00106474,99612.0,99611.0,0.39959676]
[1733929152042,6.474e-05,99612.0,99611.0,0.39459676]
[1733929152261,6.474e-05,99612.0,99611.0,0.40059676]
[1733929152477,6.474e-05,99612.0,99611.0,0.500922]
[1733929152887,6.474e-05,99612.0,99611.0,0.507922]
[1733929153126,6.474e-05,99612.0,99611.0,0.509922]
[1733929153630,6.474e-05,99612.0,99611.0,0.01]
[1733929153864,0.00960819,99612.0,99611.0,0.14985962]
[1733929154095,0.15960819,99612.0,99611.0,0.22315962]
[1733929154328,0.15006474,99612.0,99611.0,0.31749676]
[1733929154566,0.15006474,99612.0,99611.0,0.32549676]
[1733929154803,0.15006474,99612.0,99611.0,0.31749676]
[1733929155026,0.15006474,99612.0,99611.0,0.31549676]
[1733929155254,0.00306474,99612.0,99611.0,0.31549676]
[1733929155466,6.474e-05,99612.0,99611.0,0.31549676]
[1733929155703,6.474e-05,99612.0,99611.0,0.51627776]
[1733929155923,6.474e-05,99612.0,99611.0,0.52227776]
[1733929156373,6.474e-05,99612.0,99611.0,0.52027776]
[1733929156814,0.00106474,99612.0,99611.0,0.52027776]
[1733929157046,0.00106474,99612.0,99611.0,0.51627776]
[1733929157708,0.00106474,99612.0,99611.0,0.51827776]
[1733929157923,0.00106474,99612.0,99611.0,0.31549676]
[1733929158615,0.00106474,99612.0,99611.0,0.26989676]
[1733929158835,0.00106474,99612.0,99611.0,0.27389676]
[1733929158836,6.474e-05,99612.0,99611.0,0.27389676]
[1733929159101,6.474e-05,99612.0,99611.0,0.26989676]
[1733929159801,0.35084374,99612.0,99611.0,0.26989676]
[1733929160032,0.35184374,99612.0,99611.0,0.26989676]
[1733929160254,0.4424011,99612.0,99611.0,0.13985962]
[1733929160474,0.35084374,99612.0,99611.0,0.11926255]
[1733929160697,0.36039134,99612.0,99611.0,0.11726255]
[1733929160942,0.01061234,99612.0,99611.0,0.11826255]
[1733929161189,0.00106474,99612.0,99611.0,0.24930349]
[1733929161415,0.00106474,99612.0,99611.0,0.24729969]
[1733929162089,6.474e-05,99612.0,99611.0,0.24729969]
[1733929162331,0.00106474,99612.0,99611.0,0.24829969]
[1733929162543,0.00106474,99612.0,99611.0,0.48072493]
[1733929162771,6.474e-05,99612.0,99611.0,0.48072493]
[1733929162997,6.474e-05,99612.0,99611.0,0.65372493]
[1733929163230,0.0001714,99630.0,99611.0,0.65372493]
[1733929163231,0.200692,99656.0,99654.0,0.11726255]
[1733929163487,0.200692,99656.0,99654.0,0.08588897]
[1733929163715,0.052831,99660.0,99656.0,0.08588897]
[1733929163716,0.01104621,99657.0,99656.0,0.08588897]
[1733929164175,0.0001643,99657.0,99656.0,0.08588897]
[1733929164656,0.0001643,99657.0,99653.0,0.7513417]
[1733929164657,0.0001643,99657.0,99655.0,0.13003714]
[1733929164890,0.20069,99656.0,99655.0,0.21592611]
[1733929165345,0.0001243,99657.0,99656.0,0.21592611]
[1733929165584,0.0001243,99657.0,99656.0,0.29542611]
[1733929166795,0.0001243,99657.0,99656.0,0.29842611]
[1733929167255,0.0001243,99657.0,99656.0,0.21892611]
[1733929168858,0.0001243,99657.0,99656.0,0.21887611]
[1733929171366,0.0001243,99657.0,99656.0,0.20987611]
[1733929172257,0.0001243,99657.0,99656.0,0.08888897]
[1733929173654,0.0001243,99657.0,99656.0,0.003]
[1733929175049,0.10544954,99657.0,99656.0,0.003]
[1733929175270,0.10644954,99657.0,99656.0,0.003]
[1733929175716,0.10644954,99657.0,99653.0,0.73175268]
[1733929175717,0.40138,99656.0,99653.0,0.73175268]
[1733929175966,0.11924951,99655.0,99653.0,0.73175268]
[1733929176186,0.200694,99654.0,99653.0,0.73175268]
[1733929176420,0.30601924,99654.0,99653.0,0.73175268]
[1733929177113,0.200694,99654.0,99653.0,0.73175268]
[1733929177593,0.350694,99654.0,99653.0,0.73170268]
[1733929178057,0.45601924,99654.0,99653.0,0.73170268]
[1733929178764,0.350694,99654.0,99653.0,0.73170268]
[1733929179459,0.351694,99654.0,99653.0,0.73170268]
[1733929179698,0.36117008,99654.0,99653.0,0.73170268]
[1733929180393,0.36117008,99654.0,99653.0,0.73165268]
[1733929181086,0.36117008,99654.0,99653.0,0.73160268]
[1733929181563,0.46649532,99654.0,99653.0,0.73160268]
[1733929181783,0.46649532,99654.0,99653.0,0.73155268]
[1733929182486,0.46649532,99654.0,99653.0,0.73150268]
[1733929183173,0.46649532,99654.0,99653.0,0.73145268]
[1733929184153,0.47049532,99654.0,99653.0,0.73145268]
[1733929184402,0.46949532,99654.0,99653.0,0.73145268]
[1733929184612,0.01347608,99654.0,99653.0,0.81734165]
[1733929184853,0.01647608,99654.0,99653.0,0.81734165]
[1733929185327,0.01647608,99654.0,99653.0,0.73145268]
[1733929185553,0.01347608,99654.0,99653.0,0.81734165]
[1733929185990,0.01447608,99654.0,99653.0,0.86374165]
[1733929186227,0.01447608,99654.0,99653.0,0.77785268]
[1733929186460,0.01447608,99654.0,99653.0,0.73145268]
[1733929186461,0.36980132,99654.0,99653.0,0.73145268]
[1733929186716,0.36580132,99654.0,99653.0,0.73145268]
[1733929186969,0.36580132,99654.0,99653.0,0.73245268]
[1733929187217,0.36580132,99654.0,99653.0,0.73145268]
[1733929187677,0.47390461,99654.0,99653.0,0.73145268]
[1733929187907,0.47090461,99654.0,99653.0,0.73145268]
[1733929188359,0.47490461,99654.0,99653.0,0.73145268]
[1733929188593,0.36980132,99654.0,99653.0,0.73145268]
[1733929188874,0.37280132,99654.0,99653.0,0.73145268]
[1733929190697,2.29610921,99654.0,99653.0,0.48052774]
[1733929190926,0.200781,99611.0,99610.0,0.08597477]
[1733929192633,0.200766,99618.0,99610.0,0.08597477]
[1733929192855,0.15,99619.0,99618.0,0.08588897]
[1733929193119,0.15,99619.0,99611.0,0.00100381]
[1733929193120,0.200734,99634.0,99630.0,0.21308897]
[1733929193335,0.003,99654.0,99634.0,0.08588897]
[1733929193336,0.11613559,99640.0,99634.0,0.08588897]
[1733929193547,0.00016424,99638.0,99634.0,0.08588897]
[1733929193790,0.20089124,99638.0,99634.0,0.08588897]
[1733929194018,0.401473,99633.0,99630.0,0.1272]
[1733929194244,0.200751,99626.0,99624.0,0.12093714]
[1733929194677,0.200763,99620.0,99617.0,0.082]
[1733929195568,0.200776,99614.0,99610.0,8.58e-05]
[1733929195782,0.10532524,99613.0,99610.0,8.58e-05]
[1733929196213,0.15,99611.0,99610.0,8.58e-05]
[1733929196435,0.25532524,99611.0,99610.0,8.58e-05]
[1733929198017,0.25832524,99611.0,99610.0,8.58e-05]
[1733929198251,0.34469086,99611.0,99610.0,8.58e-05]
[1733929198507,0.003,99611.0,99610.0,0.08597477]
[1733929198728,0.003,99611.0,99610.0,0.28911191]
[1733929198729,0.006,99611.0,99610.0,0.28911191]
[1733929198917,0.11613559,99650.0,99610.0,0.47385492]
[1733929199175,0.0096805,99651.0,99637.0,0.21778897]
[1733929199403,0.0096805,99651.0,99637.0,0.33872611]
[1733929199404,0.200709,99647.0,99637.0,0.33872611]
[1733929199622,0.200709,99647.0,99637.0,0.34531894]
[1733929200286,0.1,99671.0,99641.0,0.08588897]
[1733929200495,0.10532524,99659.0,99648.0,0.08588897]
[1733929200748,0.0530026,99660.0,99653.0,0.08588897]
[1733929200979,0.200686,99658.0,99657.0,0.08588897]
[1733929201205,0.0530026,99660.0,99657.0,0.08588897]
[1733929201445,0.0530026,99660.0,99658.0,0.0451]
[1733929203467,0.200704,99649.0,99648.0,0.08588897]
[1733929203700,0.200714,99644.0,99643.0,0.0497]
[1733929203899,0.200714,99644.0,99643.0,0.13558897]
[1733929204345,0.0200714,99644.0,99643.0,0.13558897]
[1733929204578,0.20071,99646.0,99643.0,0.0497]
[1733929204799,0.40142,99646.0,99643.0,0.0497]
[1733929205017,0.15,99645.0,99643.0,0.0497]
[1733929205231,0.350714,99644.0,99643.0,0.0497]
[1733929205446,0.350714,99644.0,99643.0,0.0527]
[1733929205660,0.350714,99644.0,99643.0,0.005]
[1733929205897,0.48419008,99644.0,99643.0,0.002]
[1733929206118,3.60448197,99644.0,99643.0,0.002]
[1733929206336,2.30740997,99644.0,99643.0,0.006]
[1733929206567,2.30740997,99644.0,99643.0,0.002]
[1733929206568,1.05723897,99644.0,99643.0,0.002]
[1733929207453,0.39389989,99638.0,99637.0,0.00675707]
[1733929207671,0.75432842,99638.0,99637.0,0.00675707]
[1733929208101,0.4851141,99638.0,99637.0,0.00675707]
[1733929208319,0.5851141,99638.0,99637.0,0.00675707]
[1733929208536,0.15,99638.0,99637.0,0.00675707]
[1733929208760,0.004,99644.0,99640.0,0.08588897]
[1733929208969,0.004,99644.0,99643.0,0.08588897]
[1733929209236,0.20071,99646.0,99641.0,0.0751]
[1733929209460,0.401421,99646.0,99641.0,0.0751]
[1733929210147,0.39502291,99646.0,99641.0,0.0751]
[1733929210568,0.401428,99644.0,99641.0,0.0751]
[1733929210785,0.350718,99642.0,99641.0,0.0751]
[1733929211432,0.15,99642.0,99641.0,0.16098897]
[1733929211661,0.008,99646.0,99645.0,0.08588897]
[1733929211887,0.008,99646.0,99645.0,0.27832948]
[1733929212103,0.008,99646.0,99645.0,0.38265135]
[1733929212104,0.004,99646.0,99645.0,0.38265135]
[1733929212582,0.0530026,99660.0,99649.0,0.023]
[1733929213038,0.0530026,99660.0,99659.0,0.08588897]
[1733929213254,0.0004,99669.0,99661.0,0.22982611]
[1733929213477,0.0004,99669.0,99661.0,0.20682611]
[1733929213478,0.200667,99668.0,99661.0,0.20682611]
[1733929213689,0.200668,99667.0,99661.0,0.08588897]
[1733929214364,0.20108584,99662.0,99661.0,0.08588897]
[1733929214999,0.00040784,99662.0,99661.0,0.08588897]
[1733929215426,0.00040784,99662.0,99661.0,0.30956897]
[1733929215667,0.00040784,99662.0,99661.0,0.08588897]
[1733929216316,0.00040784,99662.0,99661.0,0.33615135]
[1733929216530,0.00040784,99662.0,99661.0,0.20782611]
[1733929216738,0.00040784,99662.0,99661.0,0.33615135]
[1733929216964,0.00040784,99662.0,99661.0,0.33515135]
[1733929217413,0.00040784,99662.0,99661.0,0.33615135]
[1733929217633,0.0004,99669.0,99665.0,0.27952611]
[1733929217848,0.0004,99669.0,99665.0,0.38485135]
[1733929221992,0.00071908,99680.0,99679.0,0.38345135]
[1733929222184,0.005,99683.0,99682.0,0.20682611]
[1733929222424,0.005,99683.0,99682.0,0.33515135]
[1733929222648,0.00516414,99683.0,99682.0,0.33515135]
[1733929222873,0.00516414,99683.0,99682.0,0.22982611]
[1733929223327,0.00516414,99683.0,99682.0,0.08588897]
[1733929223539,0.00516414,99683.0,99679.0,0.001]
[1733929223540,0.200638,99682.0,99679.0,0.001]
[1733929223754,0.20066,99671.0,99670.0,0.08588897]
[1733929223996,0.20066,99671.0,99662.0,0.0493]
[1733929223997,0.200674,99664.0,99663.0,0.08588897]
[1733929224230,0.15,99670.0,99647.0,0.08588897]
[1733929224231,0.200698,99652.0,99647.0,0.08588897]
[1733929224439,0.200698,99652.0,99651.0,0.08588897]
[1733929225102,0.200693,99655.0,99647.0,0.08588897]
[1733929225331,0.200704,99649.0,99648.0,0.20682611]
[1733929225540,0.200693,99655.0,99649.0,0.12093714]
[1733929225781,0.200693,99655.0,99650.0,0.08588897]
[1733929226232,0.32409544,99670.0,99658.0,0.08588897]
[1733929226233,0.15,99670.0,99658.0,0.08588897]
[1733929226479,0.005,99683.0,99665.0,0.08588897]
[1733929226480,0.01211678,99681.0,99665.0,0.08588897]
[1733929226683,0.200656,99673.0,99672.0,0.08588897]
[1733929227321,0.200645,99679.0,99674.0,0.08588897]
[1733929227532,0.005,99683.0,99674.0,0.08588897]
[1733929227533,0.20065,99676.0,99674.0,0.08588897]
[1733929227747,0.005,99683.0,99678.0,0.08588897]
[1733929227981,0.200638,99682.0,99681.0,0.08588897]
[1733929228223,0.005,99683.0,99682.0,0.08588897]
[1733929228931,0.005,99683.0,99682.0,0.23082911]
[1733929229194,0.005,99683.0,99682.0,0.33515135]
[1733929229459,0.00516414,99683.0,99682.0,0.33515135]
[1733929229797,0.00516414,99683.0,99682.0,0.33915135]
[1733929230040,0.00516414,99683.0,99682.0,0.21082611]
[1733929230588,0.00516414,99683.0,99682.0,0.20682611]
[1733929230852,0.00516414,99683.0,99682.0,0.21482611]
[1733929231119,0.00516414,99683.0,99682.0,0.21782611]
[1733929231661,0.00516414,99683.0,99682.0,0.21482611]
[1733929231917,0.20580014,99683.0,99682.0,0.20682611]
[1733929232153,0.20580014,99683.0,99682.0,0.08588897]
[1733929232603,0.00516414,99683.0,99682.0,0.21072611]
[1733929233014,0.00516414,99683.0,99682.0,0.21172611]
[1733929235125,0.00516414,99683.0,99682.0,0.005]
[1733929236211,0.00516414,99683.0,99682.0,0.001]
[1733929236431,0.401276,99682.0,99678.0,0.13133897]
[1733929236664,0.200638,99682.0,99681.0,0.08578897]
[1733929237296,0.20064,99681.0,99678.0,0.13133897]
[1733929237524,0.40128,99681.0,99678.0,0.13133897]
[1733929237739,0.40128,99681.0,99678.0,0.13113897]
[1733929238594,0.40128,99681.0,99678.0,0.13613897]
[1733929238812,0.40128,99681.0,99678.0,0.13113897]
[1733929239265,0.40128,99681.0,99678.0,0.09078897]
[1733929239484,0.40128,99681.0,99678.0,0.005]
[1733929239905,0.40128,99681.0,99678.0,0.007]
[1733929240358,0.40128,99681.0,99678.0,0.005]
[1733929240783,0.40328,99681.0,99678.0,0.005]
[1733929240998,0.40328,99681.0,99678.0,0.00495]
[1733929241207,0.20066,99671.0,99670.0,0.20672611]
[1733929241491,0.19746,99671.0,99670.0,0.20672611]
[1733929242778,0.19946,99671.0,99670.0,0.20672611]
[1733929243222,0.20146,99671.0,99670.0,0.20672611]
[1733929243461,0.004,99671.0,99670.0,0.20672611]
[1733929243674,0.004,99671.0,99670.0,0.38785135]
[1733929244556,0.00516414,99683.0,99670.0,0.38785135]
[1733929244765,0.00516414,99683.0,99682.0,0.12093714]
[1733929244984,0.00516414,99683.0,99682.0,0.20672611]
[1733929246050,0.00516414,99683.0,99682.0,0.36005135]
[1733929246262,0.00516414,99683.0,99682.0,0.36105135]
[1733929247362,0.00516414,99683.0,99682.0,0.36305135]
[1733929247570,0.00516414,99683.0,99682.0,0.36205135]
[1733929248040,0.00516414,99683.0,99682.0,0.36705135]
[1733929248470,0.00516414,99683.0,99682.0,0.23700135]
[1733929249616,0.00516414,99683.0,99682.0,0.13167611]
[1733929250565,0.00516414,99683.0,99682.0,0.08367611]
[1733929250818,0.00516414,99683.0,99682.0,0.07667611]
[1733929251032,0.00516414,99683.0,99680.0,8.58e-05]
[1733929251033,0.200638,99682.0,99680.0,8.58e-05]
[1733929251725,0.200638,99682.0,99681.0,0.07667611]
[1733929252626,0.200638,99682.0,99680.0,8.58e-05]
[1733929254197,0.202638,99682.0,99680.0,8.58e-05]
[1733929254846,0.28484472,99682.0,99680.0,8.58e-05]
[1733929255072,0.202638,99682.0,99680.0,8.58e-05]
[1733929255519,0.10532524,99681.0,99680.0,8.58e-05]
[1733929255797,0.10532524,99681.0,99660.0,8.58e-05]
[1733929255798,0.15,99679.0,99660.0,8.58e-05]
[1733929256021,0.20068,99661.0,99660.0,8.58e-05]
[1733929257738,0.20368,99661.0,99660.0,0.0010858]
[1733929257977,0.20068,99661.0,99660.0,8.58e-05]
[1733929258408,0.20368,99661.0,99660.0,8.58e-05]
[1733929258873,0.008,99661.0,99660.0,0.07676191]
[1733929260436,0.200673,99665.0,99660.0,0.07676191]
[1733929260646,0.005,99661.0,99660.0,0.07676191]
[1733929261130,0.002,99661.0,99660.0,0.07676191]
[1733929261353,0.200673,99665.0,99660.0,0.08276191]
[1733929261564,0.200673,99665.0,99660.0,0.08476191]
[1733929262007,0.200676,99663.0,99660.0,0.08476191]
[1733929262724,0.401352,99663.0,99660.0,0.08476191]
[1733929263162,0.401352,99663.0,99660.0,0.08276191]
[1733929263396,0.401352,99663.0,99660.0,0.0060858]
[1733929263647,0.401352,99663.0,99660.0,0.0010858]
[1733929263862,0.0763,99677.0,99660.0,0.0010858]
[1733929263863,0.200666,99669.0,99661.0,0.07667611]
[1733929264074,0.081,99689.0,99661.0,0.07667611]
[1733929264075,0.0004,99689.0,99682.0,0.07667611]
[1733929264286,0.401265,99685.0,99682.0,0.07667611]
[1733929264504,0.200632,99685.0,99674.0,0.07667611]
[1733929264713,0.200632,99685.0,99670.0,0.07667611]
[1733929264932,0.200656,99673.0,99670.0,0.07667611]
[1733929265357,0.401312,99673.0,99670.0,0.07667611]
[1733929265777,0.401312,99673.0,99670.0,0.0757545]
[1733929266205,0.200676,99663.0,99662.0,0.0487]
[1733929266413,0.200676,99663.0,99660.0,8.58e-05]
[1733929266619,0.200676,99663.0,99662.0,0.0757545]
[1733929267032,0.200676,99663.0,99660.0,8.58e-05]
[1733929267238,0.401352,99663.0,99660.0,8.58e-05]
[1733929267500,0.200676,99663.0,99662.0,0.001]
[1733929267704,0.20068,99661.0,99660.0,8.58e-05]
[1733929267904,0.45600524,99661.0,99660.0,8.58e-05]
[1733929270141,0.64242957,99661.0,99660.0,8.58e-05]
[1733929270568,0.64642957,99661.0,99660.0,8.58e-05]
[1733929270775,0.64942957,99661.0,99660.0,8.58e-05]
[1733929270983,0.74750753,99661.0,99660.0,8.58e-05]
[1733929271207,0.16217883,99661.0,99660.0,8.58e-05]
[1733929271450,0.02017883,99661.0,99660.0,0.0020858]
[1733929271663,0.02017883,99661.0,99660.0,0.0010858]
[1733929271664,0.01717883,99661.0,99660.0,0.0010858]
[1733929272042,0.02017883,99661.0,99660.0,0.0020858]
[1733929272703,0.003,99661.0,99660.0,0.0768403]
[1733929272910,0.008,99661.0,99660.0,0.0768403]
[1733929273114,0.005,99661.0,99660.0,0.0758403]
[1733929273540,0.200659,99672.0,99661.0,0.20068]
[1733929273743,0.200666,99668.0,99660.0,0.0758403]
[1733929274184,0.200666,99668.0,99660.0,0.0808403]
[1733929274387,0.20066,99671.0,99660.0,0.0758403]
[1733929274591,0.200668,99667.0,99660.0,0.0768403]
[1733929274802,0.200661,99671.0,99660.0,0.0768403]
[1733929275009,0.20067,99666.0,99660.0,0.0768403]
[1733929275248,0.200667,99668.0,99660.0,0.0768403]
[1733929275660,0.200661,99671.0,99660.0,0.0768403]
[1733929275871,0.1856965,99680.0,99661.0,0.20068]
[1733929276077,0.200657,99673.0,99661.0,0.20068]
[1733929276256,0.4013,99676.0,99661.0,0.20068]
[1733929276901,0.1856965,99680.0,99660.0,0.0758403]
[1733929277142,0.17404885,99670.0,99660.0,0.0758403]
[1733929277360,0.200673,99665.0,99660.0,8.58e-05]
[1733929277596,0.401346,99665.0,99660.0,8.58e-05]
[1733929277866,0.40117813,99665.0,99660.0,8.58e-05]
[1733929279602,0.41296637,99665.0,99660.0,8.58e-05]
[1733929279834,0.41296637,99665.0,99660.0,0.0030858]
[1733929280286,0.41296637,99665.0,99660.0,0.0040858]
[1733929280918,0.41296637,99665.0,99660.0,0.0030858]
[1733929281133,0.41296637,99665.0,99660.0,8.58e-05]
[1733929282213,0.41396637,99665.0,99660.0,8.58e-05]
[1733929282634,0.41296637,99665.0,99660.0,8.58e-05]
[1733929282864,0.41496637,99665.0,99660.0,8.58e-05]
[1733929283087,0.41796637,99665.0,99660.0,8.58e-05]
[1733929283302,0.41596637,99665.0,99660.0,8.58e-05]
[1733929283515,0.41996637,99665.0,99660.0,8.58e-05]
[1733929283723,0.200702,99650.0,99649.0,0.0756403]
[1733929284793,0.200702,99650.0,99640.0,0.1282858]
[1733929284794,0.200702,99650.0,99640.0,8.58e-05]
[1733929284795,0.20072,99641.0,99640.0,8.58e-05]
[1733929285028,0.45604524,99641.0,99640.0,0.00063348]
[1733929285234,0.200704,99649.0,99640.0,0.00063348]
[1733929285235,0.15,99649.0,99640.0,0.00063348]
[1733929285468,0.11608835,99650.0,99643.0,0.0756403]
[1733929285469,0.12778356,99650.0,99643.0,0.0756403]
[1733929285689,0.12778356,99650.0,99640.0,0.00063348]
[1733929285895,0.200716,99643.0,99640.0,0.00063348]
[1733929286102,0.401433,99643.0,99641.0,0.00657432]
[1733929286320,0.12778356,99650.0,99640.0,0.00063348]
[1733929286321,0.21239821,99650.0,99646.0,0.0756403]
[1733929286532,0.15,99657.0,99649.0,0.0756403]
[1733929286806,0.15,99653.0,99649.0,0.0756403]
[1733929287013,0.003,99650.0,99649.0,0.0756403]
[1733929287441,0.003,99650.0,99648.0,0.0756403]
[1733929287651,0.003,99650.0,99640.0,0.00063348]
[1733929287652,0.200704,99649.0,99647.0,0.0756403]
[1733929287859,0.003,99650.0,99645.0,0.0756403]
[1733929287860,0.200708,99647.0,99645.0,0.0756403]
[1733929288068,0.200718,99643.0,99641.0,0.0756403]
[1733929288277,0.200704,99649.0,99641.0,0.0756403]
[1733929288706,0.200704,99649.0,99642.0,0.0065697]
[1733929288917,0.11608835,99651.0,99641.0,0.0756403]
[1733929289127,0.200714,99644.0,99641.0,0.0756403]
[1733929289354,0.200707,99648.0,99642.0,0.0065697]
[1733929289574,0.200707,99648.0,99641.0,0.0816403]
[1733929289781,0.200707,99648.0,99642.0,0.0065697]
[1733929289989,0.200707,99648.0,99642.0,0.002]
[1733929290389,0.200707,99648.0,99641.0,0.0776403]
[1733929290685,0.200707,99648.0,99642.0,0.003]
[1733929290887,0.200716,99643.0,99642.0,0.0095697]
[1733929291094,0.200716,99643.0,99642.0,0.003]
[1733929291301,0.200716,99643.0,99642.0,0.0095697]
[1733929291510,0.11608835,99670.0,99649.0,0.200702]
[1733929291729,0.15,99660.0,99648.0,0.0756403]
[1733929292012,0.200692,99655.0,99648.0,0.0756403]
[1733929292253,0.2007,99651.0,99648.0,0.0756403]
[1733929292907,0.4014,99651.0,99648.0,0.0756403]
[1733929293116,0.4014,99651.0,99640.0,0.00063348]
[1733929293117,0.200719,99642.0,99640.0,0.00063348]
[1733929295108,0.200659,99672.0,99640.0,0.00063348]
[1733929295109,0.200654,99674.0,99648.0,0.0756403]
[1733929295324,0.200701,99651.0,99648.0,0.0756403]
[1733929295526,0.401402,99651.0,99648.0,0.0756403]
[1733929295733,0.11608835,99660.0,99640.0,0.00763348]
[1733929295939,0.13284379,99669.0,99641.0,0.0756403]
[1733929295940,0.200717,99643.0,99641.0,0.0756403]
[1733929296150,0.200717,99643.0,99641.0,0.00657432]
[1733929296536,0.001,99642.0,99640.0,0.00063348]
[1733929296669,0.20072,99641.0,99640.0,0.00063348]
[1733929298122,0.19806059,99641.0,99640.0,0.00063348]